fUSD/lending_fUSD_20240212
["ID","MTS","AMOUNT","RATE_DAILY","PERIOD"]
[313771811,1707711276192,-693.92,0.00022998,2]
[313771812,1707711276214,-249.3002979,0.00022998,2]
[313771813,1707711276236,-500.0,0.00022998,2]
[313771814,1707711276257,-2002.74,0.00022998,2]
[313771815,1707711276279,-500.0,0.00022998,2]
[313771816,1707711276300,-1453.13,0.00022998,2]
[313771817,1707711276323,-500.0,0.00022998,2]
[313771818,1707711276345,-527.17105247,0.00022998,2]
[313771819,1707711276366,-507.90034592,0.00022998,2]
[313771820,1707711276388,-1226.7,0.00022998,2]
[313771821,1707711276415,-500.0,0.00022998,2]
[313771822,1707711276437,-608.06,0.00022998,2]
[313771823,1707711276460,-500.0,0.00022998,2]
[313771824,1707711276482,-500.0,0.00022998,2]
[313771825,1707711276504,-500.0,0.00022998,2]
[313771826,1707711276526,-3243.3352535,0.00022998,2]
[313771827,1707711276548,-245.00799608,0.00022998,2]
[313771828,1707711276570,-1088.64,0.00022998,2]
[313771829,1707711276591,-500.0,0.00022998,2]
[313771830,1707711276613,-652.53,0.00022998,2]
[313771831,1707711276634,-513.26429606,0.00022998,2]
[313771832,1707711276656,-500.0,0.00022998,2]
[313771833,1707711276678,-500.0,0.00022998,2]
[313771834,1707711276699,-161.57360592,0.00022998,2]
[313771835,1707711276720,-1625.54,0.00022998,2]
[313771836,1707711276742,-500.0,0.00022998,2]
[313771837,1707711276762,-500.0,0.00022998,2]
[313771838,1707711276782,-518.73427167,0.00022998,2]
[313771839,1707711276802,-500.0,0.00022998,2]
[313771840,1707711276823,-500.0,0.00022998,2]
[313771841,1707711276843,-1158.19,0.00022998,2]
[313771842,1707711276864,-500.0,0.00022998,2]
[313771843,1707711276884,-1341.31,0.00022998,2]
[313771844,1707711276905,-500.0,0.00022998,2]
[313771845,1707711276925,-500.0,0.00022998,2]
[313771846,1707711276946,-500.0,0.00022998,2]
[313771847,1707711276966,-500.0,0.00022998,2]
[313771848,1707711276988,-878.23,0.00022998,2]
[313771849,1707711277008,-500.0,0.00022998,2]
[313771850,1707711277028,-507.90826197,0.00022998,2]
[313771851,1707711277049,-1452.04,0.00022998,2]
[313771852,1707711277070,-500.0,0.00022998,2]
[313771853,1707711277090,-1421.51,0.00022998,2]
[313771854,1707711277112,-500.0,0.00022998,2]
[313771855,1707711277132,-500.0,0.00022998,2]
[313771856,1707711277153,-500.0,0.00022998,2]
[313771857,1707711277174,-500.0,0.00022998,2]
[313771858,1707711277194,-500.0,0.00022998,2]
[313771859,1707711277215,-1363.97,0.00022998,2]
[313771860,1707711277235,-660.52,0.00022998,2]
[313771861,1707711277255,-500.0,0.00022998,2]
[313771862,1707711277275,-500.0,0.00022998,2]
[313771863,1707711277294,-500.0,0.00022998,2]
[313771864,1707711277314,-511.34051627,0.00022998,2]
[313771865,1707711277335,-555.48,0.00022998,2]
[313771866,1707711277354,-500.0,0.00022998,2]
[313771867,1707711277374,-563.5,0.00022998,2]
[313771868,1707711277395,-743.61,0.00022998,2]
[313771869,1707711277415,-530.49288039,0.00022998,2]
[313771870,1707711277435,-500.0,0.00022998,2]
[313771871,1707711277455,-596.9283832,0.00022998,2]
[313771872,1707711277476,-777.43,0.00022998,2]
[313771873,1707711277498,-1411.06,0.00022998,2]
[313771874,1707711277518,-500.0,0.00022998,2]
[313771875,1707711277538,-519.2487327,0.00022998,2]
[313771876,1707711277559,-1144.79,0.00022998,2]
[313771877,1707711277580,-1016.97,0.00022998,2]
[313771878,1707711277604,-500.0,0.00022998,2]
[313771879,1707711277625,-500.0,0.00022998,2]
[313771880,1707711277646,-179.80699404,0.00022998,2]
[313771881,1707711277668,-1435.98,0.00022998,2]
[313771882,1707711277691,-500.0,0.00022998,2]
[313771883,1707711277711,-2367.247482,0.00022998,2]
[313771884,1707711277732,-516.37463528,0.00022998,2]
[313771885,1707711277752,-500.0,0.00022998,2]
[313771886,1707711277776,-504.49,0.00022998,2]
[313771887,1707711277797,-1363.69,0.00022998,2]
[313771888,1707711277817,-500.0,0.00022998,2]
[313771889,1707711277837,-566.78,0.00022998,2]
[313771890,1707711277858,-500.0,0.00022998,2]
[313771891,1707711277879,-500.0,0.00022998,2]
[313771892,1707711277901,-500.0,0.00022998,2]
[313771893,1707711277921,-1221.21,0.00022998,2]
[313771894,1707711277943,-500.0,0.00022998,2]
[313771895,1707711277968,-512.5281378,0.00022998,2]
[313771896,1707711277989,-1172.76,0.00022998,2]
[313771897,1707711278010,-500.0,0.00022998,2]
[313771898,1707711278031,-536.32,0.00022998,2]
[313771899,1707711278052,-532.53733185,0.00022998,2]
[313771900,1707711278073,-714.34,0.00022998,2]
[313771901,1707711278094,-500.0,0.00022998,2]
[313771902,1707711278114,-500.0,0.00022998,2]
[313771903,1707711278134,-500.0,0.00022998,2]
[313771904,1707711278156,-500.0,0.00022998,2]
[313771905,1707711278176,-500.0,0.00022998,2]
[313771906,1707711278196,-500.0,0.00022998,2]
[313771907,1707711278217,-103413.7349838,0.00022998,2]
[313771908,1707711278239,-528.6975405,0.00022998,2]
[313771909,1707711278260,-500.0,0.00022998,2]
[313771910,1707711278282,-500.0,0.00022998,2]
[313771911,1707711278303,-500.0,0.00022998,2]
[313771912,1707711278323,-526.15562697,0.00022998,2]
[313771913,1707711278344,-500.0,0.00022998,2]
[313771914,1707711278365,-500.0,0.00022998,2]
[313771915,1707711278385,-569.25181283,0.00022998,2]
[313771916,1707711278406,-2336.51,0.00022998,2]
[313771917,1707711278427,-500.0,0.00022998,2]
[313771918,1707711278446,-1550.7813705,0.00022998,2]
[313771919,1707711278468,-500.0,0.00022998,2]
[313771920,1707711278489,-609.18,0.00022998,2]
[313771921,1707711278510,-500.0,0.00022998,2]
[313771922,1707711278531,-1318.61284088,0.00022998,2]
[313771923,1707711278554,-23798.13350821,0.00022999,2]
[313771924,1707711278573,-846.34697477,0.00022999,2]
[313771925,1707711278594,-490.62689939,0.00022999,2]
[313771926,1707711278615,-562.82099899,0.00022999,2]
[313771927,1707711278636,-500.0,0.00022999,2]
[313771928,1707711278658,-500.0,0.00022999,2]
[313771929,1707711278682,-500.0,0.00022999,2]
[313771930,1707711278703,-1329.29,0.00022999,2]
[313771931,1707711278725,-181.41435234,0.00022999,2]
[313771932,1707711278746,-514.61588919,0.00022999,2]
[313771933,1707711278768,-244.46120788,0.00022999,2]
[313771934,1707711278789,-500.0,0.00022999,2]
[313771935,1707711278810,-508.5,0.00022999,2]
[313771936,1707711278831,-500.0,0.00022999,2]
[313771937,1707711278852,-500.0,0.00022999,2]
[313771938,1707711278872,-500.0,0.00022999,2]
[313771939,1707711278893,-500.0,0.00022999,2]
[313771940,1707711278913,-500.0,0.00022999,2]
[313771941,1707711278935,-500.0,0.00022999,2]
[313771942,1707711278956,-500.0,0.00022999,2]
[313771943,1707711278977,-515.10162539,0.00022999,2]
[313771944,1707711278998,-500.0,0.00022999,2]
[313771945,1707711279019,-500.0,0.00022999,2]
[313771946,1707711279040,-500.0,0.00022999,2]
[313771947,1707711279061,-512.37595627,0.00022999,2]
[313771948,1707711279082,-505.91001672,0.00022999,2]
[313771949,1707711279102,-509.21,0.00022999,2]
[313771950,1707711279123,-500.0,0.00022999,2]
[313771951,1707711279143,-635.33,0.00022999,2]
[313771952,1707711279164,-500.0,0.00022999,2]
[313771953,1707711279185,-522.4504035,0.00022999,2]
[313771954,1707711279205,-500.0,0.00022999,2]
[313771955,1707711279225,-500.0,0.00022999,2]
[313771956,1707711279247,-500.0,0.00022999,2]
[313771957,1707711279267,-529.36709,0.00022999,2]
[313771958,1707711279288,-206.71081631,0.00022999,2]
[313771959,1707711279308,-500.0,0.00022999,2]
[313771960,1707711279330,-811.77,0.00022999,2]
[313771961,1707711279351,-500.0,0.00022999,2]
[313771962,1707711279372,-579.1888567,0.00022999,2]
[313771963,1707711279394,-606.78712313,0.00022999,2]
[313771964,1707711279415,-500.0,0.00022999,2]
[313771965,1707711279445,-509.24206565,0.00022999,2]
[313771966,1707711279467,-518.15748433,0.00022999,2]
[313771967,1707711279487,-500.0,0.00022999,2]
[313771968,1707711279509,-183.48693286,0.00022999,2]
[313771969,1707711279531,-500.0,0.00022999,2]
[313771970,1707711279553,-500.0,0.00022999,2]
[313771971,1707711279575,-500.0,0.00022999,2]
[313771972,1707711279597,-500.0,0.00022999,2]
[313771973,1707711279618,-202.8166005,0.00022999,2]
[313771974,1707711279639,-547.07,0.00022999,2]
[313771975,1707711279660,-481.15648567,0.00022999,2]
[313771976,1707711279685,-534.40996418,0.00022999,2]
[313771977,1707711279706,-500.0,0.00022999,2]
[313771978,1707711279728,-500.0,0.00022999,2]
[313771979,1707711279748,-500.0,0.00022999,2]
[313771980,1707711279769,-500.0,0.00022999,2]
[313771981,1707711279788,-500.0,0.00022999,2]
[313771982,1707711279808,-557.4,0.00022999,2]
[313771983,1707711279829,-500.0,0.00022999,2]
[313771984,1707711279850,-500.0,0.00022999,2]
[313771985,1707711279870,-500.0,0.00022999,2]
[313771986,1707711279893,-575.57,0.00022999,2]
[313771987,1707711279913,-525.72661641,0.00022999,2]
[313771988,1707711279936,-500.0,0.00022999,2]
[313771989,1707711279957,-500.0,0.00022999,2]
[313771990,1707711280181,-500.0,0.00022999,2]
[313771991,1707711280202,-500.0,0.00022999,2]
[313771992,1707711280226,-500.0,0.00022999,2]
[313771993,1707711280246,-500.0,0.00022999,2]
[313771994,1707711280266,-500.0,0.00022999,2]
[313771995,1707711280287,-586.27,0.00022999,2]
[313771996,1707711280309,-500.0,0.00022999,2]
[313771997,1707711280330,-500.0,0.00022999,2]
[313771998,1707711280351,-500.0,0.00022999,2]
[313771999,1707711280372,-546.99060507,0.00022999,2]
[313772000,1707711280393,-576.39,0.00022999,2]
[313772001,1707711280414,-500.0,0.00022999,2]
[313772002,1707711280435,-527.79658325,0.00022999,2]
[313772003,1707711280456,-586.7130536,0.00022999,2]
[313772004,1707711280477,-375.31537084,0.00022999,2]
[313772005,1707711280499,-167.58540365,0.00022999,2]
[313772006,1707711280520,-840.94,0.00022999,2]
[313772007,1707711280541,-500.0,0.00022999,2]
[313772008,1707711280561,-514.02981637,0.00022999,2]
[313772009,1707711280583,-500.0,0.00022999,2]
[313772010,1707711280604,-500.0,0.00022999,2]
[313772011,1707711280624,-500.0,0.00022999,2]
[313772012,1707711280644,-500.0,0.00022999,2]
[313772013,1707711280665,-635.62,0.00022999,2]
[313772014,1707711280689,-500.0,0.00022999,2]
[313772015,1707711280709,-500.0,0.00022999,2]
[313772016,1707711280731,-579.9038753,0.00022999,2]
[313772017,1707711280752,-500.0,0.00022999,2]
[313772018,1707711280785,-500.0,0.00022999,2]
[313772019,1707711280807,-522.45134876,0.00022999,2]
[313772020,1707711280830,-527.61996216,0.00022999,2]
[313772021,1707711280852,-522.03,0.00022999,2]
[313772022,1707711280874,-500.0,0.00022999,2]
[313772023,1707711280896,-519.14534679,0.00022999,2]
[313772024,1707711280917,-540.00578783,0.00022999,2]
[313772025,1707711280939,-516.39783885,0.00022999,2]
[313772026,1707711280960,-541.67,0.00022999,2]
[313772027,1707711280981,-500.0,0.00022999,2]
[313772028,1707711281000,-500.0,0.00022999,2]
[313772029,1707711281021,-500.0,0.00022999,2]
[313772030,1707711281041,-500.0,0.00022999,2]
[313772031,1707711281062,-536.76815499,0.00022999,2]
[313772032,1707711281083,-500.0,0.00022999,2]
[313772033,1707711281103,-644.94,0.00022999,2]
[313772034,1707711281125,-500.0,0.00022999,2]
[313772035,1707711281148,-500.0,0.00022999,2]
[313772036,1707711281169,-500.0,0.00022999,2]
[313772037,1707711281190,-500.0,0.00022999,2]
[313772038,1707711281211,-500.0,0.00022999,2]
[313772039,1707711281232,-530.93554769,0.00022999,2]
[313772040,1707711281253,-494.94919345,0.00022999,2]
[313772041,1707711281273,-500.0,0.00022999,2]
[313772042,1707711281295,-500.0,0.00022999,2]
[313772043,1707711281314,-512.00058047,0.00022999,2]
[313772044,1707711281335,-500.0,0.00022999,2]
[313772045,1707711281356,-515.59397166,0.00022999,2]
[313772046,1707711281376,-514.87610412,0.00022999,2]
[313772047,1707711281397,-500.0,0.00022999,2]
[313772048,1707711281418,-515.79290533,0.00022999,2]
[313772049,1707711281438,-500.0,0.00022999,2]
[313772050,1707711281459,-514.99852341,0.00022999,2]
[313772051,1707711281480,-500.0,0.00022999,2]
[313772052,1707711281501,-2689.93,0.00022999,2]
[313772053,1707711281527,-500.0,0.00022999,2]
[313772054,1707711281547,-512.06155096,0.00022999,2]
[313772055,1707711281569,-518.89232858,0.00022999,2]
[313772056,1707711281589,-500.0,0.00022999,2]
[313772057,1707711281610,-518.38368947,0.00022999,2]
[313772058,1707711281631,-707.11,0.00022999,2]
[313772059,1707711281651,-500.0,0.00022999,2]
[313772060,1707711281672,-500.0,0.00022999,2]
[313772061,1707711281696,-569.85775583,0.00022999,2]
[313772062,1707711281717,-527.02415276,0.00022999,2]
[313772063,1707711281738,-523.00734848,0.00022999,2]
[313772064,1707711281758,-500.0,0.00022999,2]
[313772065,1707711281780,-477.8169401,0.00022999,2]
[313772066,1707711281801,-500.0,0.00022999,2]
[313772067,1707711281821,-500.0,0.00022999,2]
[313772068,1707711281841,-490.5517918,0.00022999,2]
[313772069,1707711281862,-560.78,0.00022999,2]
[313772070,1707711281884,-500.0,0.00022999,2]
[313772071,1707711281905,-500.0,0.00022999,2]
[313772072,1707711281926,-510.12704613,0.00022999,2]
[313772073,1707711281946,-514.53937671,0.00022999,2]
[313772074,1707711281967,-500.0,0.00022999,2]
[313772075,1707711281989,-500.0,0.00022999,2]
[313772076,1707711282009,-500.0,0.00022999,2]
[313772077,1707711282030,-529.36538793,0.00022999,2]
[313772078,1707711282050,-589.65,0.00022999,2]
[313772079,1707711282071,-500.0,0.00022999,2]
[313772080,1707711282092,-500.0,0.00022999,2]
[313772081,1707711282113,-510.35684683,0.00022999,2]
[313772082,1707711282134,-542.63054279,0.00022999,2]
[313772083,1707711282155,-500.0,0.00022999,2]
[313772084,1707711282176,-500.0,0.00022999,2]
[313772085,1707711282197,-500.0,0.00022999,2]
[313772086,1707711282219,-500.0,0.00022999,2]
[313772087,1707711282240,-500.0,0.00022999,2]
[313772088,1707711282261,-505.43680149,0.00022999,2]
[313772089,1707711282282,-512.32690099,0.00022999,2]
[313772090,1707711282303,-500.0,0.00022999,2]
[313772091,1707711282326,-666.12,0.00022999,2]
[313772092,1707711282347,-510.03708154,0.00022999,2]
[313772093,1707711282368,-500.0,0.00022999,2]
[313772094,1707711282388,-500.0,0.00022999,2]
[313772095,1707711282411,-500.0,0.00022999,2]
[313772096,1707711282433,-698.24,0.00022999,2]
[313772097,1707711282454,-500.0,0.00022999,2]
[313772098,1707711282476,-529.52202071,0.00022999,2]
[313772099,1707711282496,-500.0,0.00022999,2]
[313772100,1707711282517,-500.0,0.00022999,2]
[313772101,1707711282538,-522.2367496,0.00022999,2]
[313772102,1707711282559,-517.74179439,0.00022999,2]
[313772103,1707711282579,-520.31022427,0.00022999,2]
[313772104,1707711282601,-500.0,0.00022999,2]
[313772105,1707711282622,-500.0,0.00022999,2]
[313772106,1707711282643,-685.56,0.00022999,2]
[313772107,1707711282664,-527.92751847,0.00022999,2]
[313772108,1707711282687,-500.0,0.00022999,2]
[313772109,1707711282709,-500.0,0.00022999,2]
[313772110,1707711282730,-500.0,0.00022999,2]
[313772111,1707711282754,-500.0,0.00022999,2]
[313772112,1707711282776,-527.46936678,0.00022999,2]
[313772113,1707711282797,-500.0,0.00022999,2]
[313772114,1707711282819,-667.94,0.00022999,2]
[313772115,1707711282839,-520.63680003,0.00022999,2]
[313772116,1707711282861,-504.08584421,0.00022999,2]
[313772117,1707711282889,-633.96,0.00022999,2]
[313772118,1707711282911,-500.0,0.00022999,2]
[313772119,1707711282932,-500.0,0.00022999,2]
[313772120,1707711282953,-624.37,0.00022999,2]
[313772121,1707711282974,-500.0,0.00022999,2]
[313772122,1707711282995,-500.0,0.00022999,2]
[313772123,1707711283015,-500.0,0.00022999,2]
[313772124,1707711283036,-500.0,0.00022999,2]
[313772125,1707711283059,-565.92,0.00022999,2]
[313772126,1707711283080,-500.0,0.00022999,2]
[313772127,1707711283101,-636.44,0.00022999,2]
[313772128,1707711283122,-500.0,0.00022999,2]
[313772129,1707711283147,-500.0,0.00022999,2]
[313772130,1707711283168,-500.0,0.00022999,2]
[313772131,1707711283190,-500.0,0.00022999,2]
[313772132,1707711283212,-500.0,0.00022999,2]
[313772133,1707711283234,-500.0,0.00022999,2]
[313772134,1707711283256,-500.0,0.00022999,2]
[313772135,1707711283276,-522.12861413,0.00022999,2]
[313772136,1707711283297,-500.0,0.00022999,2]
[313772137,1707711283319,-500.0,0.00022999,2]
[313772138,1707711283340,-500.0,0.00022999,2]
[313772139,1707711283362,-524.83722166,0.00022999,2]
[313772140,1707711283383,-500.0,0.00022999,2]
[313772141,1707711283405,-518.98062435,0.00022999,2]
[313772142,1707711283426,-500.0,0.00022999,2]
[313772143,1707711283448,-500.0,0.00022999,2]
[313772144,1707711283469,-500.0,0.00022999,2]
[313772145,1707711283491,-500.0,0.00022999,2]
[313772146,1707711283513,-500.0,0.00022999,2]
[313772147,1707711283534,-517.29167441,0.00022999,2]
[313772148,1707711283555,-500.0,0.00022999,2]
[313772149,1707711283576,-500.0,0.00022999,2]
[313772150,1707711283596,-500.0,0.00022999,2]
[313772151,1707711283618,-500.0,0.00022999,2]
[313772152,1707711283638,-500.0,0.00022999,2]
[313772153,1707711283659,-500.0,0.00022999,2]
[313772154,1707711283682,-500.0,0.00022999,2]
[313772155,1707711283704,-500.0,0.00022999,2]
[313772156,1707711283724,-500.0,0.00022999,2]
[313772157,1707711283746,-500.0,0.00022999,2]
[313772158,1707711283767,-500.0,0.00022999,2]
[313772159,1707711283788,-500.0,0.00022999,2]
[313772160,1707711283809,-521.99749064,0.00022999,2]
[313772161,1707711283829,-512.48947679,0.00022999,2]
[313772162,1707711284014,-500.0,0.00022999,2]
[313772163,1707711284077,-500.0,0.00022999,2]
[313772164,1707711284101,-500.0,0.00022999,2]
[313772165,1707711284122,-601.84042013,0.00022999,2]
[313772166,1707711284143,-806.28,0.00022999,2]
[313772167,1707711284164,-500.0,0.00022999,2]
[313772168,1707711284185,-500.0,0.00022999,2]
[313772169,1707711284206,-500.0,0.00022999,2]
[313772170,1707711284227,-500.0,0.00022999,2]
[313772171,1707711284248,-500.0,0.00022999,2]
[313772172,1707711284269,-513.20508722,0.00022999,2]
[313772173,1707711284293,-500.0,0.00022999,2]
[313772174,1707711284315,-280.22591576,0.00022999,2]
[313772175,1707711284336,-500.0,0.00022999,2]
[313772176,1707711284359,-500.0,0.00022999,2]
[313772177,1707711284382,-500.0,0.00022999,2]
[313772178,1707711284405,-510.5626463,0.00022999,2]
[313772179,1707711284427,-520.3984817,0.00022999,2]
[313772180,1707711284448,-500.0,0.00022999,2]
[313772181,1707711284469,-500.0,0.00022999,2]
[313772182,1707711284491,-510.01119559,0.00022999,2]
[313772183,1707711284511,-500.0,0.00022999,2]
[313772184,1707711284532,-500.0,0.00022999,2]
[313772185,1707711284554,-500.0,0.00022999,2]
[313772186,1707711284574,-500.0,0.00022999,2]
[313772187,1707711284595,-500.0,0.00022999,2]
[313772188,1707711284622,-500.0,0.00022999,2]
[313772189,1707711284643,-500.0,0.00022999,2]
[313772190,1707711284665,-500.0,0.00022999,2]
[313772191,1707711284688,-529.56878383,0.00022999,2]
[313772192,1707711284709,-512.784179,0.00022999,2]
[313772193,1707711284732,-500.0,0.00022999,2]
[313772194,1707711284753,-500.0,0.00022999,2]
[313772195,1707711284775,-500.0,0.00022999,2]
[313772196,1707711284797,-522.75923575,0.00022999,2]
[313772197,1707711284818,-500.0,0.00022999,2]
[313772198,1707711284839,-500.0,0.00022999,2]
[313772199,1707711284862,-500.0,0.00022999,2]
[313772200,1707711284884,-500.0,0.00022999,2]
[313772201,1707711284906,-500.0,0.00022999,2]
[313772202,1707711284928,-500.0,0.00022999,2]
[313772203,1707711284949,-500.0,0.00022999,2]
[313772204,1707711284971,-500.0,0.00022999,2]
[313772205,1707711285018,-500.0,0.00022999,2]
[313772206,1707711285039,-500.0,0.00022999,2]
[313772207,1707711285061,-500.0,0.00022999,2]
[313772208,1707711285082,-500.0,0.00022999,2]
[313772209,1707711285103,-500.0,0.00022999,2]
[313772210,1707711285123,-500.0,0.00022999,2]
[313772211,1707711285144,-500.0,0.00022999,2]
[313772212,1707711285165,-500.0,0.00022999,2]
[313772213,1707711285187,-514.72925393,0.00022999,2]
[313772214,1707711285207,-526.9545021,0.00022999,2]
[313772215,1707711285228,-500.0,0.00022999,2]
[313772216,1707711285248,-844.38,0.00022999,2]
[313772217,1707711285268,-500.0,0.00022999,2]
[313772218,1707711285289,-500.0,0.00022999,2]
[313772219,1707711285309,-508.408862,0.00022999,2]
[313772220,1707711285332,-500.0,0.00022999,2]
[313772221,1707711285352,-524.69693334,0.00022999,2]
[313772222,1707711285372,-519.07548626,0.00022999,2]
[313772223,1707711285393,-518.30358916,0.00022999,2]
[313772224,1707711285415,-500.0,0.00022999,2]
[313772225,1707711285436,-500.0,0.00022999,2]
[313772226,1707711285457,-507.73393412,0.00022999,2]
[313772227,1707711285478,-500.0,0.00022999,2]
[313772228,1707711285501,-500.0,0.00022999,2]
[313772229,1707711285522,-504.50675083,0.00022999,2]
[313772230,1707711285543,-500.0,0.00022999,2]
[313772231,1707711285564,-518.0809155,0.00022999,2]
[313772232,1707711285586,-500.0,0.00022999,2]
[313772233,1707711285607,-500.0,0.00022999,2]
[313772234,1707711285628,-1295.56,0.00022999,2]
[313772235,1707711285649,-500.0,0.00022999,2]
[313772236,1707711285673,-512.3173577,0.00022999,2]
[313772237,1707711285696,-500.0,0.00022999,2]
[313772238,1707711285718,-150.0,0.00022999,2]
[313772239,1707711285739,-518.26350055,0.00022999,2]
[313772240,1707711285760,-519.67571293,0.00022999,2]
[313772241,1707711285781,-500.0,0.00022999,2]
[313772242,1707711285807,-537.91432891,0.00022999,2]
[313772243,1707711285827,-510.68234274,0.00022999,2]
[313772244,1707711285848,-1000.0,0.00022999,7]
[313772245,1707711285868,-535.55,0.00022999,2]
[313772246,1707711285890,-385.42513385,0.00022999,2]
[313772247,1707711285913,-500.0,0.00022999,2]
[313772248,1707711285936,-799.83,0.00022999,2]
[313772249,1707711285958,-500.0,0.00022999,2]
[313772250,1707711285979,-500.0,0.00022999,2]
[313772251,1707711286000,-569.07192157,0.00022999,2]
[313772252,1707711286021,-500.0,0.00022999,2]
[313772253,1707711286041,-500.0,0.00022999,2]
[313772254,1707711286064,-500.0,0.00022999,2]
[313772255,1707711286085,-500.0,0.00022999,2]
[313772256,1707711286107,-500.0,0.00022999,2]
[313772257,1707711286128,-537.65008725,0.00022999,2]
[313772258,1707711286149,-500.0,0.00022999,2]
[313772259,1707711286172,-512.1984177,0.00022999,2]
[313772260,1707711286194,-500.0,0.00022999,2]
[313772261,1707711286216,-500.0,0.00022999,2]
[313772262,1707711286237,-500.0,0.00022999,2]
[313772263,1707711286257,-500.0,0.00022999,2]
[313772264,1707711286278,-500.0,0.00022999,2]
[313772265,1707711286299,-500.0,0.00022999,2]
[313772266,1707711286320,-512.95475409,0.00022999,2]
[313772267,1707711286342,-500.0,0.00022999,2]
[313772268,1707711286363,-526.09971124,0.00022999,2]
[313772269,1707711286385,-500.0,0.00022999,2]
[313772270,1707711286408,-500.0,0.00022999,2]
[313772271,1707711286429,-500.0,0.00022999,2]
[313772272,1707711286450,-500.0,0.00022999,2]
[313772273,1707711286471,-500.0,0.00022999,2]
[313772274,1707711286493,-500.0,0.00022999,2]
[313772275,1707711286514,-500.0,0.00022999,2]
[313772276,1707711286536,-1361.21,0.00022999,2]
[313772277,1707711286558,-528.33338442,0.00022999,2]
[313772278,1707711286581,-500.0,0.00022999,2]
[313772279,1707711286603,-500.0,0.00022999,2]
[313772280,1707711286624,-500.0,0.00022999,2]
[313772281,1707711286645,-500.0,0.00022999,2]
[313772282,1707711286667,-1063.21,0.00022999,2]
[313772283,1707711286692,-529.90039953,0.00022999,2]
[313772284,1707711286716,-500.0,0.00022999,2]
[313772285,1707711286740,-500.0,0.00022999,2]
[313772286,1707711286763,-500.0,0.00022999,2]
[313772287,1707711286785,-500.0,0.00022999,2]
[313772288,1707711286806,-522.11808128,0.00022999,2]
[313772289,1707711286827,-500.0,0.00022999,2]
[313772290,1707711286850,-500.0,0.00022999,2]
[313772291,1707711286871,-1464.1,0.00022999,2]
[313772292,1707711286893,-500.0,0.00022999,2]
[313772293,1707711286915,-515.94636352,0.00022999,2]
[313772294,1707711286936,-531.66807749,0.00022999,2]
[313772295,1707711286956,-500.0,0.00022999,2]
[313772296,1707711286977,-500.0,0.00022999,2]
[313772297,1707711286998,-500.0,0.00022999,2]
[313772298,1707711287019,-500.0,0.00022999,2]
[313772299,1707711287040,-500.0,0.00022999,2]
[313772300,1707711287061,-1003.08,0.00022999,2]
[313772301,1707711287083,-500.0,0.00022999,2]
[313772302,1707711287104,-650.24,0.00022999,2]
[313772303,1707711287125,-500.0,0.00022999,2]
[313772304,1707711287147,-500.0,0.00022999,2]
[313772305,1707711287169,-532.56,0.00022999,2]
[313772306,1707711287191,-500.0,0.00022999,2]
[313772307,1707711287211,-500.0,0.00022999,2]
[313772308,1707711287232,-508.73854932,0.00022999,2]
[313772309,1707711287253,-526.35728051,0.00022999,2]
[313772310,1707711287274,-500.0,0.00022999,2]